Col. Code,Agency,Check No.,Payee,Month,Day,Year,Purpose,Source,Amount
48,J.F. Drake State,30011164,Xerox Corporation,Sep,5,2019,Operating Lease Payments,Title III (Activity 1),246.01
48,J.F. Drake State,10009195,Xerox Corporation,Sep,5,2019,Operating Lease Payments,Unrestricted Shared Services,147.75
48,J.F. Drake State,30011164,Xerox Corporation,Sep,5,2019,Operating Lease Payments,Title III (Activity 4 - Carryover),437.36
48,J.F. Drake State,10009135,Xerox Corporation,Aug,14,2019,Operating Lease Payments,Unrestricted Shared Services,169.32
48,J.F. Drake State,30011128,Xerox Corporation,Aug,14,2019,Operating Lease Payments,Title III (Activity 4 - Carryover),431.87
48,J.F. Drake State,30011128,Xerox Corporation,Aug,14,2019,Operating Lease Payments,Title III (Activity 1),225.21
48,J.F. Drake State,10009042,Reserve Account   Acct# 16265175,Jul,15,2019,Operating Lease Payments,Unrestricted Shared Services,698.46
48,J.F. Drake State,30011079,Xerox Corporation,Jul,11,2019,Operating Lease Payments,Title III (Activity 1),205.99
48,J.F. Drake State,30011079,Xerox Corporation,Jul,11,2019,Operating Lease Payments,Title III (Activity 4 - Carryover),414.05
48,J.F. Drake State,10009033,Xerox Corporation,Jul,11,2019,Operating Lease Payments,Unrestricted Shared Services,151.24
48,J.F. Drake State,30011022,"Fowlks-Turner, Deaviance",Jun,28,2019,Other Contractual Services,Ad Ed Career Pathway,"2,625.00"
48,J.F. Drake State,10008995,"SEI, Inc",Jun,25,2019,Service Contracts-Equipment,General Operating Fund,"1,249.00"
48,J.F. Drake State,10008987,"Dynamic Security, Inc.",Jun,20,2019,Other Contractual Services,General Operating Fund,"2,624.40"
48,J.F. Drake State,10008980,Berney Office Solutions,Jun,19,2019,Other Contractual Services,General Operating Fund,965.00
48,J.F. Drake State,10008982,Copeland Cleaners,Jun,19,2019,Other Contractual Services,General Operating Fund,24.30
48,J.F. Drake State,10008982,Copeland Cleaners,Jun,19,2019,Other Contractual Services,General Operating Fund,6.69
48,J.F. Drake State,10008982,Copeland Cleaners,Jun,19,2019,Other Contractual Services,General Operating Fund,6.30
48,J.F. Drake State,10008982,Copeland Cleaners,Jun,19,2019,Other Contractual Services,General Operating Fund,4.46
48,J.F. Drake State,10008982,Copeland Cleaners,Jun,19,2019,Other Contractual Services,General Operating Fund,20.50
48,J.F. Drake State,10008982,Copeland Cleaners,Jun,19,2019,Other Contractual Services,General Operating Fund,20.25
48,J.F. Drake State,10008982,Copeland Cleaners,Jun,19,2019,Other Contractual Services,General Operating Fund,36.00
48,J.F. Drake State,10008978,"The Solutions Team, Inc.",Jun,19,2019,Other Contractual Services,General Operating Fund,200.00
48,J.F. Drake State,10008984,Waste Management,Jun,19,2019,Other Contractual Services,General Operating Fund,"1,063.92"
48,J.F. Drake State,10008973,Alabama Lawnmaster Inc,Jun,18,2019,Other Contractual Services,General Operating Fund,"3,095.00"
48,J.F. Drake State,10008966,"Dynamic Security, Inc.",Jun,17,2019,Other Contractual Services,General Operating Fund,"2,594.15"
48,J.F. Drake State,10008966,"Dynamic Security, Inc.",Jun,17,2019,Other Contractual Services,General Operating Fund,"2,624.40"
48,J.F. Drake State,30010987,Tuition Management Systems LLC,Jun,17,2019,Other Contractual Services,Title III-Act 6 Funds Management,150.00
48,J.F. Drake State,30010736,"PODS Enterprises, Inc.",Jun,7,2019,Rent - Facilities,SAFRA-Activity 1 Allied Health,159.00
48,J.F. Drake State,10008932,"SEI, Inc",Jun,6,2019,Service Contracts-Equipment,General Operating Fund,"1,249.00"
48,J.F. Drake State,10008923,Cooks Pest Control,Jun,5,2019,Other Contractual Services,General Operating Fund,261.00
48,J.F. Drake State,10008923,Cooks Pest Control,Jun,5,2019,Other Contractual Services,General Operating Fund,70.00
48,J.F. Drake State,10008925,Loomis,Jun,5,2019,Other Contractual Services,General Operating Fund,197.21
48,J.F. Drake State,10008901,Alabama Lawnmaster Inc,May,30,2019,Other Contractual Services,General Operating Fund,560.00
48,J.F. Drake State,10008901,Alabama Lawnmaster Inc,May,30,2019,Other Contractual Services,General Operating Fund,"3,095.00"
48,J.F. Drake State,10008902,"Dynamic Security, Inc.",May,30,2019,Other Contractual Services,General Operating Fund,"2,478.60"
48,J.F. Drake State,10008902,"Dynamic Security, Inc.",May,30,2019,Other Contractual Services,General Operating Fund,"2,041.20"
48,J.F. Drake State,10008902,"Dynamic Security, Inc.",May,30,2019,Other Contractual Services,General Operating Fund,"2,187.00"
48,J.F. Drake State,30010717,"H&H Publishing Co., Inc.",May,30,2019,Other Contractual Services,Trio-SSS Grant,"1,404.50"
48,J.F. Drake State,10008906,Xerox Corporation,May,30,2019,Operating Lease Payments,General Operating Fund,155.39
48,J.F. Drake State,30010723,Xerox Corporation,May,30,2019,Operating Lease Payments,Title III-Act 1 Academic Instruct,203.89
48,J.F. Drake State,30010723,Xerox Corporation,May,30,2019,Operating Lease Payments,Title III-Act 4 Technology,413.29
48,J.F. Drake State,10008893,Waste Management,May,24,2019,Other Contractual Services,General Operating Fund,"1,063.92"
48,J.F. Drake State,10008882,Berney Office Solutions,May,21,2019,Other Contractual Services,General Operating Fund,965.00
48,J.F. Drake State,10008865,"Dynamic Security, Inc.",May,15,2019,Other Contractual Services,General Operating Fund,"2,430.00"
48,J.F. Drake State,10008865,"Dynamic Security, Inc.",May,15,2019,Other Contractual Services,General Operating Fund,"2,624.40"
48,J.F. Drake State,10008874,"The Solutions Team, Inc.",May,15,2019,Other Contractual Services,General Operating Fund,200.00
48,J.F. Drake State,30010688,Xerox Corporation,May,15,2019,Operating Lease Payments,Title III-Act 4 Technology,157.74
48,J.F. Drake State,10008879,Xerox Corporation,May,15,2019,Operating Lease Payments,General Operating Fund,13.39
48,J.F. Drake State,30010688,Xerox Corporation,May,15,2019,Operating Lease Payments,Title III-Act 1 Academic Instruct,29.10
48,J.F. Drake State,E1101347,Regions Bank,May,14,2019,Other Contractual Services,General Operating Fund,135.00
48,J.F. Drake State,10008857,Berney Office Solutions,May,9,2019,Other Contractual Services,General Operating Fund,"7,613.60"
48,J.F. Drake State,10008847,Loomis,May,7,2019,Other Contractual Services,General Operating Fund,197.21
48,J.F. Drake State,30010669,"PODS Enterprises, Inc.",May,7,2019,Rent - Facilities,SAFRA-Activity 1 Allied Health,159.00
48,J.F. Drake State,10008853,"SEI, Inc",May,7,2019,Service Contracts-Equipment,General Operating Fund,"1,249.00"
48,J.F. Drake State,10008834,Cooks Pest Control,May,1,2019,Other Contractual Services,General Operating Fund,261.00
48,J.F. Drake State,10008834,Cooks Pest Control,May,1,2019,Other Contractual Services,General Operating Fund,70.00
48,J.F. Drake State,10008837,"Dynamic Security, Inc.",May,1,2019,Other Contractual Services,General Operating Fund,"2,624.40"
48,J.F. Drake State,10008840,Waste Management,May,1,2019,Other Contractual Services,General Operating Fund,"1,063.92"
48,J.F. Drake State,10008804,Alabama Lawnmaster Inc,Apr,23,2019,Other Contractual Services,General Operating Fund,"3,095.00"
48,J.F. Drake State,10008806,"Dynamic Security, Inc.",Apr,23,2019,Other Contractual Services,General Operating Fund,"2,527.20"
48,J.F. Drake State,30010623,Librarica LLC,Apr,23,2019,Service Contracts-Equipment,Title III-Act 2 Library Resources,974.48
48,J.F. Drake State,10008794,Berney Office Solutions,Apr,18,2019,Other Contractual Services,General Operating Fund,965.00
48,J.F. Drake State,10008797,Copeland Cleaners,Apr,18,2019,Other Contractual Services,General Operating Fund,150.30
48,J.F. Drake State,30010619,National Print + Promo,Apr,18,2019,Service Contracts-Equipment,Title III-Act 6 Funds Management,799.00
48,J.F. Drake State,10008785,"Dynamic Security, Inc.",Apr,16,2019,Other Contractual Services,General Operating Fund,"2,624.40"
48,J.F. Drake State,30010617,"Koorsen Fire & Security , Inc",Apr,16,2019,Other Contractual Services,Title III-Act 3 Strength Facilities,285.00
48,J.F. Drake State,10008788,"The Solutions Team, Inc.",Apr,16,2019,Other Contractual Services,General Operating Fund,200.00
48,J.F. Drake State,30010618,Tuition Management Systems LLC,Apr,16,2019,Other Contractual Services,Title III-Act 6 Funds Management,150.00
48,J.F. Drake State,10008749,Copeland Cleaners,Apr,9,2019,Other Contractual Services,General Operating Fund,10.00
48,J.F. Drake State,10008750,"Dai Enterprise Events, LLC",Apr,9,2019,Other Contractual Services,General Operating Fund,92.00
48,J.F. Drake State,10008754,Loomis,Apr,9,2019,Other Contractual Services,General Operating Fund,198.10
48,J.F. Drake State,10008757,"SEI, Inc",Apr,9,2019,Service Contracts-Equipment,General Operating Fund,"1,249.00"
48,J.F. Drake State,30010605,Xerox Corporation,Apr,9,2019,Operating Lease Payments,Title III-Act 1 Academic Instruct,199.58
48,J.F. Drake State,10008760,Xerox Corporation,Apr,9,2019,Operating Lease Payments,General Operating Fund,150.92
48,J.F. Drake State,10008727,Alabama Lawnmaster Inc,Apr,2,2019,Other Contractual Services,General Operating Fund,"3,095.00"
48,J.F. Drake State,10008731,"Dynamic Security, Inc.",Apr,2,2019,Other Contractual Services,General Operating Fund,"2,041.20"
48,J.F. Drake State,10008731,"Dynamic Security, Inc.",Apr,2,2019,Other Contractual Services,General Operating Fund,"2,612.25"
48,J.F. Drake State,30010587,"PODS Enterprises, Inc.",Apr,2,2019,Rent - Facilities,SAFRA-Activity 1 Allied Health,159.00
48,J.F. Drake State,10008734,Pitney Bowes,Apr,2,2019,Operating Lease Payments,General Operating Fund,698.46
48,J.F. Drake State,10008695,Cooks Pest Control,Mar,25,2019,Other Contractual Services,General Operating Fund,70.00
48,J.F. Drake State,10008695,Cooks Pest Control,Mar,25,2019,Other Contractual Services,General Operating Fund,261.00
48,J.F. Drake State,30010575,"Koorsen Fire & Security , Inc",Mar,25,2019,Other Contractual Services,Title III-Act 3 Strength Facilities,392.26
48,J.F. Drake State,30010575,"Koorsen Fire & Security , Inc",Mar,25,2019,Other Contractual Services,Title III-Act 3 Strength Facilities,231.35
48,J.F. Drake State,10008700,Waste Management,Mar,25,2019,Other Contractual Services,General Operating Fund,"1,063.92"
48,J.F. Drake State,10008687,Berney Office Solutions,Mar,19,2019,Other Contractual Services,General Operating Fund,965.00
48,J.F. Drake State,10008688,"Dynamic Security, Inc.",Mar,19,2019,Other Contractual Services,General Operating Fund,"2,624.40"
48,J.F. Drake State,10008690,"The Solutions Team, Inc.",Mar,19,2019,Other Contractual Services,General Operating Fund,200.00
48,J.F. Drake State,30010537,Tuition Management Systems LLC,Mar,19,2019,Other Contractual Services,Title III-Act 6 Funds Management,150.00
48,J.F. Drake State,10008673,Heartland Campus Solutions ECSI,Mar,12,2019,Other Contractual Services,General Operating Fund,"1,911.69"
48,J.F. Drake State,10008639,"Dynamic Security, Inc.",Mar,7,2019,Other Contractual Services,General Operating Fund,"2,624.40"
48,J.F. Drake State,10008644,Loomis,Mar,7,2019,Other Contractual Services,General Operating Fund,195.51
48,J.F. Drake State,30010504,"PODS Enterprises, Inc.",Mar,7,2019,Rent - Facilities,SAFRA-Activity 1 Allied Health,159.00
48,J.F. Drake State,10008645,"SEI, Inc",Mar,7,2019,Service Contracts-Equipment,General Operating Fund,"1,249.00"
48,J.F. Drake State,30010506,Xerox Corporation,Mar,7,2019,Operating Lease Payments,Title III-Act 4 Technology,403.82
48,J.F. Drake State,10008648,Xerox Corporation,Mar,7,2019,Operating Lease Payments,General Operating Fund,142.43
48,J.F. Drake State,30010506,Xerox Corporation,Mar,7,2019,Operating Lease Payments,Title III-Act 1 Academic Instruct,195.84
48,J.F. Drake State,10008608,Cooks Pest Control,Feb,27,2019,Other Contractual Services,General Operating Fund,70.00
48,J.F. Drake State,10008608,Cooks Pest Control,Feb,27,2019,Other Contractual Services,General Operating Fund,261.00
48,J.F. Drake State,10008601,Alabama Lawnmaster Inc,Feb,25,2019,Other Contractual Services,General Operating Fund,"3,095.00"
48,J.F. Drake State,10008603,"Dynamic Security, Inc.",Feb,25,2019,Other Contractual Services,General Operating Fund,"2,624.40"
48,J.F. Drake State,10008596,Ellucian Company L.P.,Feb,21,2019,Other Contractual Services,General Operating Fund,"6,007.00"
48,J.F. Drake State,10008600,Waste Management,Feb,21,2019,Other Contractual Services,General Operating Fund,909.37
48,J.F. Drake State,10008576,Berney Office Solutions,Feb,19,2019,Other Contractual Services,General Operating Fund,965.00
48,J.F. Drake State,10008579,"Dynamic Security, Inc.",Feb,19,2019,Other Contractual Services,General Operating Fund,"2,624.40"
48,J.F. Drake State,10008580,Ellucian Company L.P.,Feb,19,2019,Other Contractual Services,General Operating Fund,"52,986.00"
48,J.F. Drake State,10008586,"The Solutions Team, Inc.",Feb,19,2019,Other Contractual Services,General Operating Fund,200.00
48,J.F. Drake State,10008565,"Dynamic Security, Inc.",Feb,13,2019,Other Contractual Services,General Operating Fund,"2,478.60"
48,J.F. Drake State,10008570,"Mobile Mini, Inc",Feb,13,2019,Other Contractual Services,General Operating Fund,144.99
48,J.F. Drake State,30010443,Tuition Management Systems LLC,Feb,13,2019,Other Contractual Services,Title III-Act 6 Funds Management,32.40
48,J.F. Drake State,30010443,Tuition Management Systems LLC,Feb,13,2019,Other Contractual Services,Title III-Act 6 Funds Management,150.00
48,J.F. Drake State,10008526,"Dynamic Security, Inc.",Feb,5,2019,Other Contractual Services,General Operating Fund,"2,478.60"
48,J.F. Drake State,10008527,Ellucian Company L.P.,Feb,5,2019,Other Contractual Services,General Operating Fund,"67,419.00"
48,J.F. Drake State,10008530,Loomis,Feb,5,2019,Other Contractual Services,General Operating Fund,205.12
48,J.F. Drake State,10008532,"Mobile Mini, Inc",Feb,5,2019,Other Contractual Services,General Operating Fund,140.05
48,J.F. Drake State,30010420,"PODS Enterprises, Inc.",Feb,5,2019,Rent - Facilities,SAFRA-Activity 1 Allied Health,159.00
48,J.F. Drake State,10008536,"SEI, Inc",Feb,5,2019,Service Contracts-Equipment,General Operating Fund,"1,249.00"
48,J.F. Drake State,10008540,Xerox Corporation,Feb,5,2019,Operating Lease Payments,General Operating Fund,158.15
48,J.F. Drake State,30010422,Xerox Corporation,Feb,5,2019,Operating Lease Payments,Title III-Act 4 Technology,410.97
48,J.F. Drake State,30010422,Xerox Corporation,Feb,5,2019,Operating Lease Payments,Title III-Act 1 Academic Instruct,231.33
48,J.F. Drake State,10008516,Cooks Pest Control,Jan,31,2019,Other Contractual Services,General Operating Fund,70.00
48,J.F. Drake State,10008516,Cooks Pest Control,Jan,31,2019,Other Contractual Services,General Operating Fund,261.00
48,J.F. Drake State,10008518,"Dynamic Security, Inc.",Jan,31,2019,Other Contractual Services,General Operating Fund,"2,624.40"
48,J.F. Drake State,10008520,"Mobile Mini, Inc",Jan,31,2019,Other Contractual Services,General Operating Fund,137.99
48,J.F. Drake State,10008483,Waste Management,Jan,24,2019,Other Contractual Services,General Operating Fund,"1,082.75"
48,J.F. Drake State,10008471,Calhoun Community College,Jan,22,2019,Other Contractual Services,General Operating Fund,"6,566.81"
48,J.F. Drake State,10008472,"Dynamic Security, Inc.",Jan,22,2019,Other Contractual Services,General Operating Fund,"2,539.35"
48,J.F. Drake State,30010104,Xerox Corporation,Jan,22,2019,Operating Lease Payments,Title III-Act 4 Technology,"1,268.16"
48,J.F. Drake State,10008456,Alabama Lawnmaster Inc,Jan,17,2019,Other Contractual Services,General Operating Fund,"3,095.00"
48,J.F. Drake State,10008457,Berney Office Solutions,Jan,17,2019,Other Contractual Services,General Operating Fund,"6,620.52"
48,J.F. Drake State,10008457,Berney Office Solutions,Jan,17,2019,Other Contractual Services,General Operating Fund,965.00
48,J.F. Drake State,10008461,"Mobile Mini, Inc",Jan,17,2019,Other Contractual Services,General Operating Fund,144.99
48,J.F. Drake State,10008467,"The Solutions Team, Inc.",Jan,17,2019,Other Contractual Services,General Operating Fund,200.00
48,J.F. Drake State,30010101,Tuition Management Systems LLC,Jan,17,2019,Other Contractual Services,Title III-Act 6 Funds Management,150.00
48,J.F. Drake State,30010095,Xerox Corporation,Jan,14,2019,Operating Lease Payments,Title III-Act 1 Academic Instruct,565.68
48,J.F. Drake State,10008451,Xerox Corporation,Jan,14,2019,Operating Lease Payments,General Operating Fund,425.31
48,J.F. Drake State,10008444,"Dynamic Security, Inc.",Jan,10,2019,Other Contractual Services,General Operating Fund,"2,332.92"
48,J.F. Drake State,10008432,Berney Office Solutions,Jan,8,2019,Other Contractual Services,General Operating Fund,965.00
48,J.F. Drake State,30010085,Compansol,Jan,8,2019,Other Contractual Services,Trio-SSS Grant,"1,118.95"
48,J.F. Drake State,10008434,"Dynamic Security, Inc.",Jan,8,2019,Other Contractual Services,General Operating Fund,"2,041.20"
48,J.F. Drake State,10008434,"Dynamic Security, Inc.",Jan,8,2019,Other Contractual Services,General Operating Fund,"2,187.12"
48,J.F. Drake State,10008437,Loomis,Jan,8,2019,Other Contractual Services,General Operating Fund,194.83
48,J.F. Drake State,10008440,Pitney Bowes,Jan,8,2019,Operating Lease Payments,General Operating Fund,698.46
48,J.F. Drake State,10008441,"SEI, Inc",Jan,8,2019,Service Contracts-Equipment,General Operating Fund,"1,249.00"
48,J.F. Drake State,10008442,Waste Management,Jan,8,2019,Other Contractual Services,General Operating Fund,"1,198.38"
48,J.F. Drake State,10008442,Waste Management,Jan,8,2019,Other Contractual Services,General Operating Fund,742.76
48,J.F. Drake State,10008429,"Mobile Mini, Inc",Jan,7,2019,Other Contractual Services,General Operating Fund,140.05
48,J.F. Drake State,10008420,"Dynamic Security, Inc.",Jan,4,2019,Other Contractual Services,General Operating Fund,"2,478.60"
48,J.F. Drake State,10008424,"Mobile Mini, Inc",Jan,4,2019,Other Contractual Services,General Operating Fund,137.99
48,J.F. Drake State,30010077,"PODS Enterprises, Inc.",Jan,4,2019,Rent - Facilities,SAFRA-Activity 1 Allied Health,159.00
48,J.F. Drake State,10008413,Cooks Pest Control,Dec,19,2018,Other Contractual Services,General Operating Fund,261.00
48,J.F. Drake State,10008413,Cooks Pest Control,Dec,19,2018,Other Contractual Services,General Operating Fund,70.00
48,J.F. Drake State,10008414,"Mobile Mini, Inc",Dec,19,2018,Other Contractual Services,General Operating Fund,144.99
48,J.F. Drake State,30010074,"Nola Van Peursem Architects, PC",Dec,19,2018,Engineering & Architect Srvcs,Title III,"3,060.76"
48,J.F. Drake State,10008386,Alabama Lawnmaster Inc,Dec,18,2018,Other Contractual Services,General Operating Fund,"3,095.00"
48,J.F. Drake State,30010068,Tuition Management Systems LLC,Dec,18,2018,Other Contractual Services,Title III-Act 6 Funds Management,150.00
48,J.F. Drake State,10008376,"Dynamic Security, Inc.",Dec,13,2018,Other Contractual Services,General Operating Fund,"2,624.40"
48,J.F. Drake State,10008379,"Mobile Mini, Inc",Dec,13,2018,Other Contractual Services,General Operating Fund,140.05
48,J.F. Drake State,10008380,"SEI, Inc",Dec,13,2018,Service Contracts-Equipment,General Operating Fund,"1,249.00"
48,J.F. Drake State,10008363,Loomis,Dec,6,2018,Other Contractual Services,General Operating Fund,180.72
48,J.F. Drake State,10008365,"Mobile Mini, Inc",Dec,6,2018,Other Contractual Services,General Operating Fund,137.99
48,J.F. Drake State,30010042,"PODS Enterprises, Inc.",Dec,6,2018,Rent - Facilities,SAFRA-Activity 1 Allied Health,159.00
48,J.F. Drake State,10008338,Cooks Pest Control,Nov,29,2018,Other Contractual Services,General Operating Fund,261.00
48,J.F. Drake State,10008338,Cooks Pest Control,Nov,29,2018,Other Contractual Services,General Operating Fund,70.00
48,J.F. Drake State,10008326,Berney Office Solutions,Nov,27,2018,Other Contractual Services,General Operating Fund,965.00
48,J.F. Drake State,10008328,"Dynamic Security, Inc.",Nov,27,2018,Other Contractual Services,General Operating Fund,"2,187.12"
48,J.F. Drake State,10008330,"Mobile Mini, Inc",Nov,27,2018,Other Contractual Services,General Operating Fund,144.99
48,J.F. Drake State,10008335,Waste Management,Nov,27,2018,Other Contractual Services,General Operating Fund,"1,067.35"
48,J.F. Drake State,10008319,Alabama Lawnmaster Inc,Nov,21,2018,Other Contractual Services,General Operating Fund,"3,095.00"
48,J.F. Drake State,10008321,"Dynamic Security, Inc.",Nov,21,2018,Other Contractual Services,General Operating Fund,"2,478.60"
48,J.F. Drake State,10008315,Berney Office Solutions,Nov,15,2018,Other Contractual Services,General Operating Fund,"6,687.36"
48,J.F. Drake State,10008304,"Dynamic Security, Inc.",Nov,14,2018,Other Contractual Services,General Operating Fund,"2,624.40"
48,J.F. Drake State,10008304,"Dynamic Security, Inc.",Nov,14,2018,Other Contractual Services,General Operating Fund,"2,636.56"
48,J.F. Drake State,10008307,Loomis,Nov,14,2018,Other Contractual Services,General Operating Fund,181.49
48,J.F. Drake State,10008308,"Mobile Mini, Inc",Nov,14,2018,Other Contractual Services,General Operating Fund,140.05
48,J.F. Drake State,30010025,Tuition Management Systems LLC,Nov,14,2018,Other Contractual Services,Title III-Act 6 Funds Management,150.00
48,J.F. Drake State,10008301,"Mobile Mini, Inc",Nov,8,2018,Other Contractual Services,General Operating Fund,137.99
48,J.F. Drake State,30010020,"Nola Van Peursem Architects, PC",Nov,6,2018,Engineering & Architect Srvcs,Title III,"23,540.89"
48,J.F. Drake State,10008291,"SEI, Inc",Nov,6,2018,Service Contracts-Equipment,General Operating Fund,"1,249.00"
48,J.F. Drake State,10008277,"Dynamic Security, Inc.",Nov,1,2018,Other Contractual Services,General Operating Fund,"2,624.40"
48,J.F. Drake State,10008251,Cooks Pest Control,Oct,26,2018,Other Contractual Services,General Operating Fund,261.00
48,J.F. Drake State,10008251,Cooks Pest Control,Oct,26,2018,Other Contractual Services,General Operating Fund,70.00
48,J.F. Drake State,10008252,"Dynamic Security, Inc.",Oct,26,2018,Other Contractual Services,General Operating Fund,"2,624.40"
48,J.F. Drake State,30010012,"Koorsen Fire & Security , Inc",Oct,26,2018,Other Contractual Services,Title III-Act 3 Strength Facilities,335.00
48,J.F. Drake State,10008254,"Mobile Mini, Inc",Oct,26,2018,Other Contractual Services,General Operating Fund,144.99
48,J.F. Drake State,10008238,Berney Office Solutions,Oct,23,2018,Other Contractual Services,General Operating Fund,965.00
48,J.F. Drake State,10008241,Copeland Cleaners,Oct,23,2018,Other Contractual Services,General Operating Fund,17.80
48,J.F. Drake State,30010006,Tuition Management Systems LLC,Oct,23,2018,Other Contractual Services,Title III-Act 6 Funds Management,150.00
48,J.F. Drake State,10008231,Waste Management,Oct,18,2018,Other Contractual Services,General Operating Fund,"1,067.35"
48,J.F. Drake State,10008217,Alabama Lawnmaster Inc,Oct,17,2018,Other Contractual Services,General Operating Fund,"3,095.00"
48,J.F. Drake State,10008221,"Dynamic Security, Inc.",Oct,17,2018,Other Contractual Services,General Operating Fund,"2,624.40"
48,J.F. Drake State,10008226,"Mobile Mini, Inc",Oct,17,2018,Other Contractual Services,General Operating Fund,140.05
48,J.F. Drake State,10008228,Pitney Bowes,Oct,17,2018,Operating Lease Payments,General Operating Fund,698.46
48,J.F. Drake State,10008211,"Mobile Mini, Inc",Oct,9,2018,Other Contractual Services,General Operating Fund,137.99
48,J.F. Drake State,10008208,Loomis,Oct,8,2018,Other Contractual Services,General Operating Fund,180.72
48,J.F. Drake State,10008205,"Dynamic Security, Inc.",Oct,4,2018,Other Contractual Services,General Operating Fund,"2,624.40"
48,J.F. Drake State,30009981,Xerox Corporation,Oct,3,2018,Operating Lease Payments,Title III-Act 4 Technology,403.19
48,J.F. Drake State,30009981,Xerox Corporation,Oct,3,2018,Operating Lease Payments,Title III-Act 1 Academic Instruct,203.61
48,J.F. Drake State,10008197,Xerox Corporation,Oct,3,2018,Operating Lease Payments,General Operating Fund,147.54
48,J.F. Drake State,30009973,"Hardiman Remediation Services, Inc.",Oct,2,2018,Other Contractual Services,Title III,"4,500.00"
